[Event "15th Tashkent Open Agzamov 2022"]
[Site "Tashkent"]
[Date "2022.05.08"]
[Round "7.7"]
[White "Abdurakhmonov, Mukhammadali"]
[Black "Aditya Mittal"]
[Result "1-0"]
[ECO "E11"]
[WhiteElo "2308"]
[BlackElo "2490"]
[Annotator "TA"]
[PlyCount "91"]
[EventDate "2022.05.05"]
[EventType "swiss"]
[EventCountry "UZB"]
[SourceTitle "playchess.com"]
[Source "ChessBase"]
[SourceQuality "1"]
[TimeControl "5400+30"]

{[%evp 16,91,10,0,2,-7,-1,-8,9,0,12,10,7,11,13,4,37,12,15,18,46,45,45,0,15,19,18,15,21,12,104,107,106,110,132,138,123,127,143,123,159,138,187,170,181,136,149,149,179,167,542,526,525,516,515,500,1004,973,941,877,29965,29966,29983,29984,29992,29991,29993,29994,29994,29992,29995,29996,29996,29997,29997,29998,29998,29999]} 1. d4 {[%emt 0:00:40]} Nf6 {[%emt 0:00:18]} 2. Nf3 {[%emt 0:00:11]} d5 {[%emt 0:00:11]} 3. c4 {[%emt 0:01:02]} e6 {[%emt 0:00:04]} 4. g3 {[%emt 0:00:34]} Bb4+ {[%emt 0:00:05]} 5. Bd2 {[%emt 0:01:09]} Be7 {[%emt 0:00:05]} 6. Bg2 {[%emt 0:02:29]} O-O {[%emt 0:00:06]} 7. Qc2 {[%emt 0:00:22]} Nbd7 {[%emt 0:00:11] is more profitable than 7...c6 at the moment.} 8. O-O {[%emt 0:01:44]} c6 {[%emt 0:00:03]} 9. Bg5 {[%emt 0:06:49]} b6 {[%emt 0:09:17][%cal Bb7b6,Bb6c5,Bc5c4][%mdl 32] E11: Bogo-Indian.} 10. Nbd2 {[%emt 0:08:21]} Bb7 {[%emt 0:04:13]} 11. Rfd1 {[%emt 0:05:54]} c5 {[%emt 0:05:32] The position is equal.} 12. dxc5 {[%emt 0:05:00]} bxc5 {[%emt 0:05:36] [#]} 13. Ne1 $146 {[%emt 0:06:30][%cal Bf3e1,Be1d3,Bd3f4][%mdl 32]} ({Predecessor:} 13. cxd5 exd5 14. e4 dxe4 15. Bxf6 Nxf6 16. Ng5 Qc7 17. Ngxe4 Rad8 18. Rac1 Rd4 19. Nxf6+ Bxf6 20. Ne4 Bxe4 21. Bxe4 {½-½ (41) Petrosyan,M (2570)-Petrosian,T (2606) Yerevan 2018}) 13... Rc8 {[%emt 0:18:54]} 14. Rac1 {[%emt 0:05:47]} Nb6 {[%emt 0:17:33]} 15. Nd3 {[%emt 0:03:04]} h6 {[%emt 0:01:14]} 16. Bxf6 {[%emt 0:04:52]} Bxf6 {[%emt 0:00:02]} 17. cxd5 {[%emt 0:08:06]} c4 {[%emt 0:01:16]} 18. Nf4 {[%emt 0:00:50]} exd5 {[%emt 0:03:34]} 19. Nb1 {[%emt 0:07:32]} (19. Ne4 $5) 19... Bc6 {[%emt 0:11:02] Strongly threatening ...Ba4.} 20. Nc3 {[%emt 0:00:14] Prevents Ba4.} d4 {[%emt 0:00:34]} 21. Bxc6 {[%emt 0:00:13]} Rxc6 {[%emt 0:00:05]} 22. Nb5 $1 {[%emt 0:00:16]} Re8 {[%emt 0:02:25] [#] Prevents e3.} (22... Qd7 $11 {remains equal.}) 23. e3 $1 $16 {[%emt 0:09:15]} d3 {[%emt 0:01:30] [#]} 24. Rxd3 {[%emt 0:01:25][%mdl 512]} Qe7 {[%emt 0:03:05]} (24... cxd3 25. Qxc6) 25. Rd2 {[%emt 0:01:29] White is more active.} Qb4 {[%emt 0:00:53]} 26. Nc3 {[%emt 0:03:34]} ({But not} 26. Nxa7 $2 Rc7 27. Nh5 (27. a3 $2 Qa5 $19) 27... Be7 $19) 26... Be5 {[%emt 0:00:15]} 27. Nfd5 {[%emt 0:01:22] Pair of Knights!} Qf8 {[%emt 0:04:09]} 28. Rcd1 {[%emt 0:01:19]} Rb8 {[%emt 0:01:52]} (28... Qc5 $16 29. e4 Rcc8) 29. Nxb6 {[%emt 0:02:13]} axb6 {[%emt 0:01:01]} 30. Nb5 {[%emt 0:01:21][%cal Bc3b5,Bb5d6,Bd6e8][%mdl 32]} g6 {[%emt 0:01:10]} 31. a4 {[%emt 0:04:25]} Qb4 {[%emt 0:02:52]} 32. Qe4 {[%emt 0:03:29]} Rc5 $2 {[%emt 0:01:04]} (32... Re6 {is a better chance.} 33. Qc2 Ra8) 33. Rd8+ $18 {[%emt 0:02:04]} Rxd8 {[%emt 0:01:01]} 34. Rxd8+ {[%emt 0:00:02]} Kg7 {[%emt 0:00:29]} 35. Nd6 {[%emt 0:01:22]} Qxb2 {[%emt 0:02:51]} (35... Qxa4 $142 36. Ne8+ Kf8) 36. Ne8+ {[%emt 0:00:25]} Kh7 {[%emt 0:00:08] [#]} 37. Rd7 $1 {[%emt 0:00:39][%cal Bd8d7,Bd7f7,Bf7f6][%mdl 32]} h5 {[%emt 0:03:38]} 38. Rxf7+ {[%emt 0:00:41] White mates.} Kh6 {[%emt 0:00:01]} 39. Qb7 {[%emt 0:01:52]} Qb1+ {[%emt 0:01:05]} 40. Kg2 {[%emt 0:00:07]} g5 {[%emt 0:00:08]} 41. e4 {[%emt 0:00:47]} Bc7 {[%emt 0:00:55]} 42. Nxc7 {[%emt 0:00:42]} h4 {[%emt 0:00:28]} 43. Rf6+ {[%emt 0:00:48]} Kh5 {[%emt 0:00:01]} 44. g4+ {[%emt 0:00:06]} Kxg4 {[%emt 0:00:03]} 45. Qc8+ {[%emt 0:00:07]} Kh5 {[%emt 0:00:09]} 46. Qe8+ {[%emt 0:00:05] Weighted Error Value: White=0.06 (flawless) /Black=0.41} 1-0

[Event "15th Tashkent Open Agzamov 2022"]
[Site "Tashkent"]
[Date "2022.05.08"]
[Round "7.8"]
[White "Temirov, Bakhyt"]
[Black "Nigmatov, Ortik"]
[Result "0-1"]
[ECO "A26"]
[WhiteElo "2205"]
[BlackElo "2463"]
[Annotator "TA"]
[PlyCount "90"]
[EventDate "2022.05.05"]
[EventType "swiss"]
[EventCountry "UZB"]
[SourceTitle "playchess.com"]
[Source "ChessBase"]
[SourceQuality "1"]
[TimeControl "5400+30"]

{[%evp 16,90,10,0,7,11,22,0,0,0,0,0,0,0,0,0,0,0,0,0,0,-6,3,0,0,-28,-27,-48,0,-36,0,-10,-61,-32,0,0,0,0,0,0,0,-172,0,0,0,0,0,0,0,0,0,0,0,0,0,-6,0,0,21,0,8,0,0,0,80,-308,-275,-629,-613,-618,-606,-607,-186,-531,-121,-110,-113]} 1. Nf3 {[%emt 0:00:07]} Nf6 {[%emt 0:00:08]} 2. c4 {[%emt 0:00:17]} g6 {[%emt 0:00:10]} 3. g3 {[%emt 0:00:34]} Bg7 {[%emt 0:00:07]} 4. Bg2 {[%emt 0:00:19]} O-O {[%emt 0:00:07]} 5. Nc3 {[%emt 0:02:57]} d6 {[%emt 0:00:08]} 6. O-O {[%emt 0:00:14]} e5 {[%emt 0:00:10]} 7. d3 {[%emt 0:01:30]} Nc6 {[%emt 0:00:25]} 8. Rb1 {[%emt 0:00:35]} a5 {[%emt 0:00:06]} 9. b3 {[%emt 0:04:07]} h6 {[%emt 0:00:27] A26: English Opening vs King's Indian with ...Nc6 and d3.} 10. Bb2 {[%emt 0:00:06]} Nh7 {[%emt 0:03:13] [#]} 11. d4 $146 {[%emt 0:24:15]} ({Predecessor:} 11. Nd5 g5 12. Ne1 f5 13. f4 Nd4 14. e3 Ne6 15. Qd2 c6 16. Nc3 Bd7 17. Ne2 {0-1 (62) Rotstein,A (2525)-Inarkiev,E (2604) Izmir 2004}) 11... Nxd4 {[%emt 0:09:59] The position is equal.} 12. Nxd4 {[%emt 0:00:33]} exd4 {[%emt 0:00:06]} 13. Nb5 {[%emt 0:02:55]} c5 {[%emt 0:00:47]} 14. e3 {[%emt 0:01:31]} dxe3 {[%emt 0:07:33]} 15. Bxg7 {[%emt 0:00:41]} Kxg7 {[%emt 0:00:13]} 16. fxe3 {[%emt 0:12:18]} Ra6 {[%emt 0:00:35]} 17. Rb2 {[%emt 0:09:16]} Qe7 {[%emt 0:01:33]} 18. Rd2 {[%emt 0:07:31][%cal Rb5d6]} Rd8 {[%emt 0:23:03]} 19. Kh1 {[%emt 0:16:37]} Bf5 {[%emt 0:17:17]} 20. Qf3 {[%emt 0:02:23]} d5 {[%emt 0:13:41]} 21. Rxd5 {[%emt 0:04:57]} Ng5 {[%emt 0:03:47]} (21... Rf6 $15 22. Rxd8 Be4) 22. Qe2 {[%emt 0:04:01]} Re8 {[%emt 0:03:44]} 23. Nc3 {[%emt 0:02:51]} Qxe3 {[%emt 0:04:16]} 24. Qb2 {[%emt 0:00:51]} Kg8 {[%emt 0:01:53]} 25. Rd2 {[%emt 0:00:57] [#] Re2 is the strong threat.} Be4 {[%emt 0:07:26]} 26. Nxe4 {[%emt 0:00:35]} Nxe4 {[%emt 0:00:05]} 27. Rd7 {[%emt 0:00:30][%csl LRb7,LRf7]} Rf8 {[%emt 0:01:30]} 28. Rxb7 $2 {[%emt 0:00:30] [#]} (28. Bxe4 $11 {and White stays safe.} Qxe4+ 29. Qg2) 28... Re6 $2 {[%emt 0:00:22]} ({Black should try} 28... Rd6 $1 $19 {[%cal Rd6d2] White must now prevent ...Rd2.} 29. Bxe4 Rd2 30. Qxd2 (30. Qb1 $2 Qe2 $19) 30... Qxd2) 29. Bxe4 {[%emt 0:00:12]} Qxe4+ {[%emt 0:00:16]} 30. Qg2 {[%emt 0:00:04]} Qd3 {[%emt 0:00:03]} 31. Qf3 {[%emt 0:01:07]} Re3 {[%emt 0:00:08]} 32. Qf4 {[%emt 0:00:13]} Re4 $40 {[%emt 0:02:04][%mdl 128] Black attacks.} 33. Qf3 {[%emt 0:00:20]} Re3 {[%emt 0:00:22]} 34. Qf4 {[%emt 0:00:04]} h5 {[%emt 0:01:05]} 35. Rf2 {[%emt 0:00:55][%cal Rb7f7]} Re1+ {[%emt 0:00:15]} 36. Kg2 {[%emt 0:00:05][%cal Rb7f7]} Qd1 {[%emt 0:00:37]} 37. Qf3 {[%emt 0:01:19] And now Qxd1 would win.} (37. Rxf7 $2 Rg1+ 38. Kh3 Qg4+ 39. Qxg4 hxg4+ 40. Kxg4 Rxf7 $19) 37... Rg1+ {[%emt 0:00:10]} 38. Kh3 {[%emt 0:00:13]} Qd4 {[%emt 0:00:22]} 39. Qf4 {[%emt 0:00:43]} (39. Rxf7 $2 Qg4+ 40. Qxg4 hxg4+ 41. Kxg4 Rxf7 $19) 39... Qd1 {[%emt 0:00:01]} (39... Qxf4 $11 40. Rxf4 Rc1) 40. Rd2 $2 {[%emt 0:00:30][%mdl 8192]} (40. Rxf7 $2 Qg4+ 41. Qxg4 hxg4+ 42. Kxg4 Rxf7 $19) (40. Rc7 $16 {stays on course.}) 40... Qe1 $19 {[%emt 0:00:18] Threatens to win with ...Qe6+.} 41. Rd6 {[%emt 0:00:44] Prevents Qe6+.} (41. Rb6 Rf1 42. Qg5) 41... Qe2 {[%emt 0:00:46] ( -> ...Rg2)} 42. Rbb6 {[%emt 0:00:24][%cal Od6g6] Threatening mate with Rxg6+!} Qg2+ {[%emt 0:00:56]} 43. Kh4 {[%emt 0:00:31][%cal Od6g6]} Qxh2+ {[%emt 0:00:01]} 44. Kg5 {[%emt 0:00:16][%cal Od6g6] White threatens Rxg6+! and mate.} Kh7 {[%emt 0:00:28]} ({Weaker is} 44... Rxg3+ 45. Kh6 Qg1 46. Rd7 $11) (44... Qxg3+ $19 {has better winning chances.} 45. Qxg3 Rxg3+ 46. Kh4 Rg4+ 47. Kh3 Re8) 45. Rd3 $17 {[%emt 0:00:39]} Qh3 {[%emt 0:01:19] Weighted Error Value: White=0.44/Black=0.27 (precise)} ({Resist} 45... Qxa2 46. Rd7 Qb2 47. Rf6 $11 (47. Rxf7+ Rxf7 48. Qxf7+ Qg7 $11)) 0-1

[Event "15th Tashkent Open Agzamov 2022"]
[Site "Tashkent"]
[Date "2022.05.08"]
[Round "7.9"]
[White "Iskandarov, Misratdin"]
[Black "Khusnutdinov, Rustam"]
[Result "1-0"]
[ECO "C63"]
[WhiteElo "2601"]
[BlackElo "2472"]
[Annotator "TA"]
[PlyCount "83"]
[EventDate "2022.05.05"]
[EventType "swiss"]
[EventCountry "UZB"]
[SourceTitle "playchess.com"]
[Source "ChessBase"]
[SourceQuality "1"]
[TimeControl "5400+30"]

{[%evp 14,83,40,16,37,40,62,50,62,14,41,39,27,27,27,27,36,39,39,42,37,20,48,33,45,40,44,43,63,13,62,58,70,46,80,79,85,87,86,58,245,236,253,251,243,241,287,283,264,257,345,332,322,308,276,240,410,410,535,478,526,529,491,506,548,535,445,267,747,655,495,460]} 1. e4 {[%emt 0:00:03]} e5 {[%emt 0:01:08]} 2. Nf3 {[%emt 0:00:22]} Nc6 {[%emt 0:00:32]} 3. Bb5 {[%emt 0:00:39]} f5 {[%emt 0:01:04]} 4. d3 {[%emt 0:00:11]} fxe4 {[%emt 0:00:09]} 5. dxe4 {[%emt 0:00:05]} Nf6 {[%emt 0:00:03]} 6. O-O {[%emt 0:00:14]} Bc5 {[%emt 0:00:18]} 7. Qd3 {[%emt 0:02:29]} d6 {[%emt 0:01:32]} 8. Nc3 {[%emt 0:00:17]} (8. Qc4 $5 {[%cal Rf3e5]}) 8... Bd7 {[%emt 0:07:40] C63: Ruy Lopez: Schliemann/Jaenisch Defence.} 9. Bg5 $5 {[%emt 0:09:05][%mdl 4] An interesting side line.} O-O {[%emt 0:02:14] [#]} 10. Bxc6 $146 {[%emt 0:10:45]} ({Predecessor:} 10. Bc4+ Kh8 11. Nd5 Nb4 12. Nxb4 Bxb4 13. a3 Bc5 14. Bh4 h6 15. Rad1 Qe8 16. Kh1 {1-0 (63) Delmas Goyon,F (1902)-Galan,F (2025) Noisiel 2020}) 10... Bxc6 {[%emt 0:01:23] [#] White is slightly better.} 11. Nxe5 $1 {[%emt 0:03:26]} Bxf2+ {[%emt 0:06:43]} 12. Rxf2 {[%emt 0:03:38]} dxe5 {[%emt 0:00:03]} 13. Qc4+ {[%emt 0:00:31]} Kh8 {[%emt 0:00:04]} 14. Rd1 {[%emt 0:00:42]} Qe8 {[%emt 0:02:40]} 15. Bxf6 {[%emt 0:01:52]} Rxf6 {[%emt 0:01:30]} 16. Rxf6 {[%emt 0:01:21]} gxf6 {[%emt 0:00:03]} 17. Nd5 {[%emt 0:11:38]} Qe6 {[%emt 0:21:46]} 18. Qf1 {[%emt 0:09:02]} Bxd5 {[%emt 0:04:37]} 19. Rxd5 $14 {[%emt 0:07:01][%mdl 4096] Endgame KQR-KQR} Rf8 {[%emt 0:03:41]} 20. b3 {[%emt 0:07:47]} f5 {[%emt 0:06:27]} 21. Qf2 {[%emt 0:01:47]} (21. c4 $14) 21... b6 {[%emt 0:07:09]} (21... Qh6 $1 $11) 22. Qg3 $36 {[%emt 0:05:41][%mdl 2048] White is pushing.} Re8 $1 {[%emt 0:00:40]} 23. Qd3 {[%emt 0:00:20] White is more active.} fxe4 {[%emt 0:10:49]} 24. Qxe4 {[%emt 0:00:13]} c6 {[%emt 0:00:06]} 25. Rd3 {[%emt 0:02:22]} Rf8 {[%emt 0:00:56]} 26. Rh3 {[%emt 0:07:56][%csl Gh3][%cal Re4h7]} Rf5 $2 {[%emt 0:03:03] [#] Loses the game.} (26... Qf5 $14 27. Qxf5 Rxf5) 27. Rxh7+ $3 $18 {[%emt 0:03:13][%mdl 512]} Kxh7 {[%emt 0:02:33]} 28. g4 {[%emt 0:00:05][%mdl 64] Pin} Qd6 {[%emt 0:00:31] ( -> ...Qd1+)} 29. Qxf5+ {[%emt 0:00:22] KQ-KQ} Kg7 {[%emt 0:00:02]} 30. Qe4 {[%emt 0:05:18]} b5 {[%emt 0:01:23]} 31. Kg2 {[%emt 0:02:01]} c5 {[%emt 0:00:32]} 32. Kg3 {[%emt 0:00:31]} c4 {[%emt 0:01:21]} 33. bxc4 {[%emt 0:00:18]} bxc4 {[%emt 0:00:02]} 34. Qe3 {[%emt 0:03:56]} ({Less strong is} 34. Qxc4 e4+ 35. Kf2 Qxh2+ 36. Ke3 Qh3+ 37. Kd4 (37. Kxe4 Qxg4+ 38. Kd5 Qd7+ 39. Kc5 Qc8+ 40. Kb4 Qb7+ 41. Qb5 Qe4+ 42. c4 Qb1+ 43. Ka3 Qd3+ 44. Ka4 Kf6 $18) 37... Qxg4 38. Qc7+ Kg6 $16) 34... a5 $2 {[%emt 0:04:24]} (34... e4+ {is a better defense.} 35. Kg2 a5 36. Qxe4 Qd2+ 37. Kg3 Qd6+ 38. Kf3 Qxh2 39. Qxc4 Qg1) 35. h4 {[%emt 0:01:15]} e4+ {[%emt 0:01:35]} 36. Kg2 {[%emt 0:00:11]} Qe6 {[%emt 0:01:31]} 37. Qg5+ {[%emt 0:00:21]} Kh8 {[%emt 0:00:01]} 38. Qf5 {[%emt 0:00:37]} Qc6 {[%emt 0:00:16]} 39. Qe5+ {[%emt 0:00:09]} Kg8 {[%emt 0:00:14]} 40. Kg3 {[%emt 0:00:06]} c3 $2 {[%emt 0:00:22]} (40... Qa4 41. Qxe4 Qxa2) 41. h5 {[%emt 0:00:35] Hoping for Qg5+.} Qb6 {[%emt 0:02:07]} 42. Qxe4 {[%emt 0:00:20] Weighted Error Value: White=0.14 (very precise) /Black=0.38} 1-0

[Event "15th Tashkent Open Agzamov 2022"]
[Site "Tashkent"]
[Date "2022.05.08"]
[Round "7.10"]
[White "Saydaliev, Saidakbar"]
[Black "Mchedlishvili, Mikheil"]
[Result "0-1"]
[ECO "A62"]
[WhiteElo "2343"]
[BlackElo "2595"]
[Annotator "TA"]
[PlyCount "110"]
[EventDate "2022.05.05"]
[EventType "swiss"]
[EventCountry "UZB"]
[SourceTitle "playchess.com"]
[Source "ChessBase"]
[SourceQuality "1"]
[TimeControl "5400+30"]

{[%evp 18,110,29,17,31,2,34,24,35,0,0,-20,-9,-36,-43,-87,-91,-84,-94,-122,-14,-58,-64,-157,-153,-267,-89,-84,-82,-100,-70,-70,-58,-61,-45,-383,-345,-394,-390,-404,-384,-414,-368,-654,-658,-647,-657,-791,-191,-188,-190,-153,-108,-148,-148,-148,-148,-148,-149,-149,-137,-124,-127,-157,-11,-194,-187,-156,-100,-197,-189,-168,-76,-77,-80,-500,-444,-683,-668,-636,-603,-1362,-1133,-1533,-1501,-1501,-1483,-11912,-12222,-11679,-6305,-6227,-6195,-5522,-5279]} 1. d4 {[%emt 0:00:03]} Nf6 {[%emt 0:00:21]} 2. c4 {[%emt 0:00:20]} c5 {[%emt 0:00:53]} 3. d5 {[%emt 0:01:50]} e6 {[%emt 0:00:35]} 4. Nc3 {[%emt 0:01:43]} exd5 {[%emt 0:00:30]} 5. cxd5 {[%emt 0:00:04]} d6 {[%emt 0:00:39]} 6. Nf3 {[%emt 0:02:50]} g6 {[%emt 0:00:24][%cal Bg7g6,Bg6g5][%mdl 32]} 7. g3 {[%emt 0:00:12]} Bg7 {[%emt 0:00:31]} 8. Bg2 {[%emt 0:00:10]} O-O {[%emt 0:00:29]} 9. O-O {[%emt 0:00:18]} Re8 {[%emt 0:01:01]} 10. Bf4 {[%emt 0:05:23]} h6 {[%emt 0:01:04] Recently 10...Bf5 got a lot of attention. A62: Modern Benoni: Fianchetto Variation without early ...Nbd7.} 11. Re1 {[%emt 0:03:45]} g5 {[%emt 0:01:55]} 12. Bc1 {[%emt 0:03:24]} Nbd7 {[%emt 0:13:54] [#] White has an edge.} 13. Nd2 $146 {[%emt 0:14:57]} ({Predecessor:} 13. Qc2 a6 14. a4 Rb8 15. h4 g4 16. Nd2 Ne5 17. b3 {0-1 (36) Sorokin,A (2511)-Vidit,S (2723) Moscow 2018}) 13... Ne5 {[%emt 0:02:59]} 14. Nf1 {[%emt 0:03:11]} Bf5 {[%emt 0:03:38]} 15. f4 {[%emt 0:02:36]} gxf4 {[%emt 0:03:38]} 16. gxf4 {[%emt 0:00:47]} Ng6 {[%emt 0:01:35] Black is much more active. The white rooks are badly placed.} 17. Ng3 {[%emt 0:00:54]} Bd7 {[%emt 0:01:45]} 18. f5 {[%emt 0:19:52] [#]} Ne5 {[%emt 0:03:54]} ({Better is} 18... Ng4 $1 $17 {[%cal Od8h4] Threatens to win with ...Qh4!} 19. fxg6 Qh4) 19. e4 {[%emt 0:02:45]} c4 {[%emt 0:05:04]} 20. Nh5 {[%emt 0:03:20]} ({White should try} 20. Rf1 $15) 20... Nfg4 $1 $17 {[%emt 0:07:08]} 21. Be3 {[%emt 0:04:40] Inhibits Qb6.} (21. Rf1 $17 Qb6+ 22. Kh1 Nf2+ 23. Rxf2 Qxf2 24. Nxg7 Kxg7 25. Bd2) 21... Nxe3 $2 {[%emt 0:11:51]} (21... Qh4 $2 22. h3 Qxh5 23. hxg4 Nxg4 24. Bf4 $19) (21... Bh8 $19 22. h3 Nxe3 23. Rxe3 Qh4) 22. Rxe3 {[%emt 0:00:02]} Qb6 $36 {[%emt 0:00:20][%csl LRb2,LRe3][%mdl 2048] White is under strong pressure.} 23. Qe2 {[%emt 0:00:05]} Bh8 {[%emt 0:06:38]} 24. Kh1 {[%emt 0:04:56]} Kh7 {[%emt 0:00:07]} 25. Bh3 {[%emt 0:08:48]} (25. Rg3 Nd3 26. Rf1 Be5 $17) 25... Nd3 {[%emt 0:10:15] Strongly threatening ...Rg8.} 26. e5 $2 {[%emt 0:01:18][%mdl 8192]} (26. Rf1 $1 $15) 26... Rxe5 $19 {[%emt 0:04:50]} (26... Bxe5 $2 27. Rxe5 Rxe5 28. Ne4 Bxf5 29. Bxf5+ Rxf5 30. Qg4 Nf2+ 31. Nxf2 Rxh5 32. Qxh5 Qxf2 33. Rg1 $19) 27. Rxe5 {[%emt 0:00:11]} Bxe5 {[%emt 0:01:04]} (27... dxe5 28. Ne4 $17) 28. Ne4 {[%emt 0:02:22] Prevents Nf2+.} Qd4 {[%emt 0:03:48][%cal Od4e4]} (28... Qxb2 $2 29. Qxb2 Bxb2 30. Rg1 $19) 29. Rf1 {[%emt 0:00:04]} Rg8 {[%emt 0:01:18]} 30. Nhg3 $2 {[%emt 0:09:24]} (30. Bg2) 30... Nf4 {[%emt 0:06:37]} 31. Rxf4 {[%emt 0:00:06]} Bxf4 {[%emt 0:00:03]} 32. Qh5 {[%emt 0:00:19]} Rg7 {[%emt 0:01:03]} (32... Bxg3 33. Qxf7+ Kh8 34. Nxg3 Qd1+ 35. Kg2 c3 $1 36. Qf6+ Kh7 37. Qxc3 Rc8) 33. f6 {[%emt 0:01:10] [#]} Bxg3 $1 {[%emt 0:02:38]} 34. Nxg3 {[%emt 0:01:53]} Bxh3 {[%emt 0:00:59]} (34... Qxb2 35. fxg7 Bxh3 36. Qxh3 $11) 35. fxg7 {[%emt 0:00:27]} Qg4 {[%emt 0:00:25] Really sharp!} (35... Qxb2 $6 36. Qxh3 Qc1+ 37. Kg2 $11 (37. Nf1 c3 $11)) 36. Qxg4 {[%emt 0:01:37]} Bxg4 $17 {[%emt 0:00:02][%mdl 4096] Endgame KB-KN} 37. Kg2 {[%emt 0:00:00]} Kxg7 {[%emt 0:05:05]} 38. Ne4 Bd7 {[%emt 0:00:00]} 39. Nxd6 {[%emt 0:00:33]} b5 {[%emt 0:00:00][%cal Bb7b5,Bb5b4][%mdl 32]} 40. Ne4 {[%emt 0:00:13] [#]} Bf5 {[%emt 0:00:00]} (40... b4 $1 $17 {Hoping for ...f5.} 41. Kf2 f5) 41. Nc5 $2 {[%emt 0:00:54]} (41. Nd6 $1 $11 {and White stays safe.} Bd7 42. Kf3) 41... b4 {[%emt 0:00:34] ...Kf6 is the strong threat.} 42. Kf2 {[%emt 0:00:43] [#]} Bb1 {[%emt 0:00:30]} ({Black should play} 42... Kf8 $1 {[%cal Rf8e7] White must now prevent ...Ke7.} 43. d6 Ke8) 43. a4 {[%emt 0:02:24]} (43. Ke3 $17 {was called for.}) 43... Kf8 $19 {[%emt 0:00:47]} 44. d6 {[%emt 0:00:17]} Bf5 {[%emt 0:00:39]} (44... Ke8 $19 {and Black stays clearly on top. aiming for ...Ba2.} 45. a5 f5) 45. Ke3 $17 {[%emt 0:00:36]} c3 {[%emt 0:00:12]} ({Of course not} 45... Ke8 46. Kd4 $11) 46. b3 {[%emt 0:00:36][%mdl 8192]} (46. bxc3 $17 {was the crucial defense.} bxc3 47. Ke2) 46... Ke8 $19 {[%emt 0:00:38] Black is clearly winning.} 47. a5 {[%emt 0:00:34]} (47. Na6 $142 Be6 48. Nxb4) 47... Be6 {[%emt 0:00:51]} 48. Kd3 {[%emt 0:00:32]} Bd5 {[%emt 0:00:14]} ({Don't go for} 48... Bf5+ $2 49. Ke3 $19) 49. Ke3 {[%emt 0:01:07]} f5 {[%emt 0:00:09]} ({Avoid the trap} 49... Be6 $2 50. Kd3 $19) 50. Nd3 {[%emt 0:00:42]} Bxb3 {[%emt 0:00:21]} 51. Nxb4 {[%emt 0:00:17]} Kd7 {[%emt 0:00:16]} 52. Kd4 {[%emt 0:00:44]} c2 {[%emt 0:00:09]} 53. Nd3 {[%emt 0:00:04]} Kxd6 {[%emt 0:00:11]} 54. Kc3 {[%emt 0:00:12]} Bd5 {[%emt 0:01:06] And now ...Be4 would win.} 55. Kd2 {[%emt 0:00:15]} Be4 {[%emt 0:02:23] Weighted Error Value: White=0.92/Black=0.34} 0-1